Cogmind - Beta 13 @@@ ROGUE MODE // 2024.04.25 @ 13:34:17 Player: Lunace Result: Destroyed by G-47 Trooper with Particle Gun Performance ------------- Evolutions (3) 1500 Regions Visited (6) 1200 Robots Destroyed (123) 615 Value Destroyed (3012) 3012 Prototype IDs (4) 80 Alien Tech Used (0) 0 Bonus (370) 370 TOTAL SCORE: 6777 Bonus ------- High Alert Combat Kills 346 Follower Combat Kills 445 Friendly Fire -421 Cogmind --------- Core Integrity 0/700 Matter 61/300 Energy 94/100 System Corruption 0% Temperature Warning (320) Movement Core (200) Ox3 Location -7/Factory Parts ------- > --- POWER (2) -------- (None) > --- PROPULSION (4) --- (None) > --- UTILITY (4) ------ Transport Network Coupler Launcher Guidance Computer > --- WEAPON (3) ------- Assault Cannon Assault Cannon > --- INVENTORY (5) ---- Improved Deuterium Engine Armored Huge Wheel Experimental Sensor Array Peak State ------------ > --- POWER ------------ Improved Deuterium Engine Improved Deuterium Engine > --- PROPULSION ------- Wheel Wheel Wheel Wheel > --- UTILITY ---------- Humpback Hardened Heavy Armor Plating > --- WEAPON ----------- Advanced Beam Rifle Greatsword > --- INVENTORY -------- Improved Deuterium Engine Improved Deuterium Engine Wheel Cryofiber Web High-capacity Matter Pod High-capacity Matter Pod Machine Analyzer Experimental Sensor Array Improved Signal Interpreter Launcher Guidance Computer Hardened Medium Armor Plating Hardened Medium Armor Plating Hardened Heavy Armor Plating Hardened Heavy Armor Plating Hardened Heavy Armor Plating Improved Light Armor Plating System Restoration Module Long-range Tractor Beam Long-range Tractor Beam Recalibrator Gauss Rifle Flak Gun Flak Cannon Grenade Launcher Grenade Launcher Rocket Launcher Chainsword Chainsword Explosive Trap Explosive Trap Explosive Trap Explosive Trap [Rating: 44] Favorites ----------- Power Improved Deuterium Engine Engine Improved Deuterium Engine Power Core Nuclear Core Propulsion Compact Wheel Wheel Compact Wheel Hover Unit Aerolev Unit Flight Unit Cesium-ion Thruster Utility Humpback Device ECM Suite Storage Humpback Processor Signal Interpreter Protection Hardened Medium Armor Plating Weapon Heavy Assault Rifle Energy Gun EM Pulse Gun Ballistic Gun Heavy Assault Rifle Ballistic Cannon Flak Cannon Launcher Grenade Launcher Impact Weapon Powered Hammer Slashing Weapon Greatsword Build | -11 -10 -10 -10 -9 -8 -7 ------- Run | Yrd Mat Min Exi Min Mat Fac Slots Evolved 6 | . . . . . 4 2 Power 1 | . . . . . . 1 Propulsion 2 | . . . . . 2 . Utility 2 | . . . . . 2 . Weapon 1 | . . . . . . 1 Parts Attached 106 | 7 10 13 1 . 15 60 Power 15 | 2 2 3 . . 1 7 Engine 13 | 2 2 3 . . . 6 Core 2 | . . . . . 1 1 Reactor . | . . . . . . . Propulsion 20 | 2 1 1 . . 1 15 Treads . | . . . . . . . Leg . | . . . . . . . Wheel 17 | 2 1 1 . . 1 12 Hover 2 | . . . . . . 2 Flight 1 | . . . . . . 1 Utility 25 | 1 4 4 1 . 6 9 Device 5 | . 1 1 . . . 3 Storage 4 | 1 1 . 1 . 1 . Processor 3 | . 1 . . . . 2 Hackware . | . . . . . . . Protection 13 | . 1 3 . . 5 4 Artifact . | . . . . . . . Weapon 46 | 2 3 5 . . 7 29 Energy Gun 2 | 1 . . . . . 1 Energy Cannon . | . . . . . . . Ballistic Gun 13 | 1 1 4 . . 3 4 Ballistic Cannon 7 | . . . . . 1 6 Launcher 15 | . 2 1 . . 3 9 Special Weapon . | . . . . . . . Impact Weapon 1 | . . . . . . 1 Slashing Weapon 8 | . . . . . . 8 Piercing Weapon . | . . . . . . . Special Melee Weapon . | . . . . . . . Unidentified Prototypes 4 | . . 1 . . . 3 Parts Lost 32 | . 2 1 . . 1 28 Power 1 | . . . . . . 1 Propulsion 15 | . 1 . . . 1 13 Utility 5 | . . . . . . 5 Weapon 11 | . 1 1 . . . 9 Highest Loss Streak 19 | . 1 1 . . 1 19 To Critical Strikes . | . . . . . . . Average Slot Usage (%) 80 | . 97 100 93 85 76 72 Engine 9 | . 14 14 14 14 5 9 Core 3 | . . . . . 3 4 Wheel 24 | . 27 28 28 28 22 23 Storage 9 | . 14 14 13 14 10 6 Processor 2 | . 9 3 . . . 1 Protection 8 | . . 10 8 . 16 6 Ballistic Gun 11 | . 15 17 28 28 13 2 Launcher 5 | . 11 10 . . 3 6 Slashing Weapon 2 | . . . . . . 5 Naked Turns . | . . . . . . . Heaviest Build 254 | 14 33 36 213 213 232 254 Greatest Support 52 | 32 32 32 32 32 48 52 Greatest Overweight (x) 12 | . 1 1 6 6 7 12 Average Overweight (x) 3 | . . . 2 6 5 5 Largest Inventory Capacity 35 | 8 15 15 35 35 35 35 Average Capacity 28 | 7 13 15 22 35 35 32 Most Carried 35 | 1 12 15 20 20 34 35 Average Carried 22 | . 6 13 15 20 26 28 Final Capacity 35 | 8 15 15 35 35 35 5 Final Carried 34 | . 10 15 20 20 34 4 Class Distribution -------------------- 69% | Hauler-Mutant 14% | Mutant 8% | Scavenger-Mutant 3% | Commander-Mutant Dominant Class ---------------- Mutant | -10/Materials Commander-Mutant | -10/Mines Scavenger-Mutant | -10/Exiles Hauler-Mutant | -9/Mines Hauler-Mutant | -8/Materials Hauler-Mutant | -7/Factory Resources | -11 -10 -10 -10 -9 -8 -7 ----------- Run | Yrd Mat Min Exi Min Mat Fac Matter Collected 2927 | 228 591 160 466 67 464 951 Remotely 83 | . . . . . . 83 Salvage Created 3898 | . 419 163 . . 996 2320 Parts 257 | . 33 27 . . 56 141 Haulers Intercepted 12 | . 2 . . . 4 6 Recyclers Shooed 5 | . 1 1 . . . 3 Parts Field Recycled . | . . . . . . . Retrieved Matter . | . . . . . . . Parts Self-Destructed . | . . . . . . . Prevented . | . . . . . . . Kills | -11 -10 -10 -10 -9 -8 -7 ------- Run | Yrd Mat Min Exi Min Mat Fac Combat Hostiles Destroyed 71 | . 11 13 . . 15 32 Melee 7 | . . . . . . 7 Guns 9 | . 2 . . . 6 1 Cannons 4 | . . . . . 1 3 AOE 50 | . 9 13 . . 7 21 Classes Destroyed 12 | . 7 1 . . 2 2 Worker 9 | . 1 1 . . . 7 Builder 9 | . . 2 . . . 7 Hauler 12 | . 2 . . . 4 6 Recycler 11 | . 2 1 . . . 8 Operator 1 | . 1 . . . . . Watcher 8 | . 2 . . . 1 5 Swarmer 26 | . 6 11 . . 2 7 Grunt 29 | . 5 2 . . 8 14 Brawler 3 | . . . . . 1 2 Sentry 10 | . . . . . 6 4 Hunter 2 | . . . . . . 2 Programmer 3 | . . . . . . 3 Best Kill Streak 8 | . 6 8 . . 7 7 Combat Bots Only 6 | . 3 5 . . 6 5 Max Kills in Single Turn 6 | . 2 4 . . 2 6 Gunslinging . | . . . . . . . Exploded 3 | . 2 3 . . 2 2 Melee 1 | . . . . . . 1 Uniques/NPCs Destroyed . | . . . . . . . Combat | -11 -10 -10 -10 -9 -8 -7 -------- Run | Yrd Mat Min Exi Min Mat Fac Hostile Shots Fired 695 | . 30 34 . 7 64 560 Missed 214 | . 7 14 . 1 20 172 Damage Taken 5887 | . 425 234 . 57 654 4517 Core 911 | . 114 28 . . 59 710 Absorbed by Shields . | . . . . . . . Regen/Repaired (Parts) 11 | . . . . . 11 . Core Remaining (%) 77 | 100 . . . 43 89 . Volleys Fired 191 | . 50 15 . 3 53 70 Largest 3 | . 2 2 . 2 2 3 Hottest 132 | . 50 50 . 46 69 132 Shots Fired 290 | . 64 20 . 6 87 113 Gun 156 | . 51 6 . 6 65 28 Cannon 47 | . . . . . 3 44 Launcher 87 | . 13 14 . . 19 41 Special . | . . . . . . . Kinetic 203 | . 51 6 . 6 68 72 Thermal . | . . . . . . . Explosive 65 | . 13 14 . . 9 29 Electromagnetic 22 | . . . . . 10 12 Robot Hit Streak 16 | . 4 2 . 2 7 16 Robot Miss Streak 5 | . 4 3 . 5 3 5 Penetration Max . | . . . . . . . Secondary Targets 1 | . 1 . . . . . Max Gunslinging Chain 1 | . 1 . . . . . Shots Hit Robots 193 | . 34 4 . 3 50 102 Core Hits 191 | . 28 22 . . 35 106 Critical Kills 1 | . . . . . 1 . Critical Parts Destroyed 1 | . 1 . . . . . Critical Strikes 8 | . 1 . . . 1 6 Destroy 2 | . 1 . . . 1 . Sever 6 | . . . . . . 6 Melee Attacks 62 | . . . . . . 62 Impact 5 | . . . . . . 5 Slashing 57 | . . . . . . 57 Piercing . | . . . . . . . Sneak Attacks 14 | . . . . . . 14 Combat Hostiles 1 | . . . . . . 1 Follow-up Attacks 1 | . . . . . . 1 Damage Inflicted 10388 | . 1163 1057 . 51 1356 6761 Guns 1343 | . 301 15 . 51 611 365 Cannons 493 | . . . . . 20 473 Explosions 5568 | . 862 1042 . . 725 2939 Melee 2984 | . . . . . . 2984 Ramming . | . . . . . . . Kinetic 1836 | . 301 15 . 51 631 838 Thermal 406 | . . . . . 84 322 Explosive 4274 | . 862 1042 . . 188 2182 Electromagnetic 888 | . . . . . 453 435 Impact 194 | . . . . . . 194 Slashing 2790 | . . . . . . 2790 Piercing . | . . . . . . . Highest Corruption 1 | . . 1 1 1 . . Average Corruption 1 | . . 1 1 1 . . Corruption Purged . | . . . . . . . Corruption Blocked . | . . . . . . . Effects 5 | . . 1 3 1 . . Heat Flow Errors 4 | . . 1 2 1 . . Data Loss (major) 1 | . . . 1 . . . Overload Shots . | . . . . . . . Overflow Damage 467 | . 15 14 . . . 438 Projectiles 2 | . . . . . . 2 Explosions 84 | . 15 14 . . . 55 Melee 381 | . . . . . . 381 Knockbacks 3 | . . . . . . 3 Impact . | . . . . . . . Kinetic 3 | . . . . . . 3 Secondary . | . . . . . . . Self-Inflicted Damage 395 | . 171 40 . . 40 144 Shots 14 | . 5 1 . . 3 5 Rammed . | . . . . . . . Targets Rammed . | . . . . . . . Kicked . | . . . . . . . Crushed . | . . . . . . . Highest Temperature 557 | . 28 141 230 280 75 557 Average Temperature 112 | . 12 40 104 147 23 145 Received Heat Transfer 1644 | . 93 36 . . 243 1272 Effects 12 | . . . . . . 12 Shutdowns 1 | . . . . . . 1 Energy Bleed 1 | . . . . . . 1 Interference 3 | . . . . . . 3 Matter Decay 1 | . . . . . . 1 Short Circuit 1 | . . . . . . 1 Damage (major) 5 | . . . . . . 5 Siege Activations . | . . . . . . . Robots Corrupted 1 | . . . . . 1 . Combat Hostiles 1 | . . . . . 1 . Parts Fried 4 | . . . . . 3 1 Impact Corruptions . | . . . . . . . Robots Melted . | . . . . . . . Combat Hostiles . | . . . . . . . Parts Melted 3 | . . . . . 2 1 Heat Transferred 450 | . . . . . 100 350 Parts Sabotaged . | . . . . . . . Parts Stolen . | . . . . . . . Parts Stripped . | . . . . . . . Power Chain Reactions 6 | . . . . . 4 2 Alert | -11 -10 -10 -10 -9 -8 -7 ------- Run | Yrd Mat Min Exi Min Mat Fac Peak Influence 836 | . 315 591 . 88 391 836 Initial 106 | . . 61 . . 33 106 Average 284 | . 177 362 . 62 198 377 Maximum Alert Level 3 | . 1 2 . . 1 3 Low Security (%) 34 | 100 43 15 . 100 32 29 Level 1 35 | . 56 44 . . 67 13 Level 2 24 | . . 39 . . . 46 Level 3 5 | . . . . . . 11 Level 4 . | . . . . . . . Level 5 . | . . . . . . . High Security . | . . . . . . . Max Security . | . . . . . . . Squads Dispatched 10 | . 1 . . . . 9 Investigation 3 | . 1 . . . . 2 Extermination 4 | . . . . . . 4 Reinforcement 1 | . . . . . . 1 Assault 1 | . . . . . . 1 Garrison 1 | . . . . . . 1 Intercept . | . . . . . . . Searches Triggered . | . . . . . . . Construction Impeded . | . . . . . . . Haulers Reinforced . | . . . . . . . Active Scanning Responses . | . . . . . . . Cargo Convoy Interrupts . | . . . . . . . Stealth | -11 -10 -10 -10 -9 -8 -7 --------- Run | Yrd Mat Min Exi Min Mat Fac Distress Signals 4 | . . 1 . . 1 2 Communications Jammed . | . . . . . . . Distress Signals . | . . . . . . . Times Spotted 113 | . 19 15 . 3 21 55 Peak Tracking Total 7 | . 3 4 . 3 4 7 Tactical Retreats 1 | . . . . . . 1 Traps | -11 -10 -10 -10 -9 -8 -7 ------- Run | Yrd Mat Min Exi Min Mat Fac Traps Triggered 5 | . . . . . . 5 Indirectly . | . . . . . . . Trap Hack Attempts . | . . . . . . . Triggered . | . . . . . . . Disarmed . | . . . . . . . Reprogrammed . | . . . . . . . Reused 2 | . . . . . . 2 Traps Extracted . | . . . . . . . Installed 4 | . . . . . . 4 Triggered 2 | . . . . . . 2 Most Traps Carried 5 | . . 5 5 5 5 5 Machines | -11 -10 -10 -10 -9 -8 -7 ---------- Run | Yrd Mat Min Exi Min Mat Fac Machines Disabled 17 | . 2 5 . . 3 7 Max in Single Turn 4 | . 1 4 . . 1 3 Garrison Access 2 | . . . . . . 2 Machines Repaired . | . . . . . . . Machines Dismantled . | . . . . . . . Machines Sabotaged . | . . . . . . . Overloaded Fab Kills . | . . . . . . . Hacking | -11 -10 -10 -10 -9 -8 -7 --------- Run | Yrd Mat Min Exi Min Mat Fac Machines Accessed 34 | . 8 1 1 . 12 12 Terminals 25 | . 7 1 . . 10 7 Fabricators 1 | . . . . . . 1 Repair Stations 2 | . . . . . 1 1 Recycling Units 3 | . 1 . . . 1 1 Scanalyzers . | . . . . . . . Garrison Access 2 | . . . . . . 2 Total Hacks 104 | . 24 2 1 . 40 37 Successful 47 | . 10 . 1 . 19 17 Failed 57 | . 14 2 . . 21 20 Catastrophic 10 | . 2 1 . . 4 3 Database Lockouts . | . . . . . . . Manual 82 | . 23 2 . . 29 28 Terminals 74 | . 20 2 . . 32 20 Fabricators 4 | . . . . . . 4 Repair Stations 4 | . . . . . 3 1 Recycling Units 15 | . 4 . . . 5 6 Scanalyzers . | . . . . . . . Garrison Access 6 | . . . . . . 6 Terminal Hacks 13 | . 4 . 1 . 7 1 Record 2 | . . . 1 . 1 . Robot Analysis 1 | . 1 . . . . . Terminal Index 2 | . 1 . . . 1 . Surveillance Status 1 | . . . . . 1 . Transport Status 1 | . . . . . 1 . Recall Investigation 1 | . 1 . . . . . Hauler Manifests 2 | . 1 . . . 1 . Registered Components 2 | . . . . . 1 1 Zone Layout 1 | . . . . . 1 . Fabricator Hacks 1 | . . . . . . 1 Network Status 1 | . . . . . . 1 Repair Station Hacks 2 | . . . . . 2 . Scan Component 1 | . . . . . 1 . Repair 1 | . . . . . 1 . Recycling Unit Hacks 6 | . . . . . 3 3 Process 2 | . . . . . 1 1 Report Inventory 2 | . . . . . 1 1 Retrieve Matter 2 | . . . . . 1 1 Scanalyzer . | . . . . . . . Garrison Access Hacks 2 | . . . . . . 2 Seal Access 2 | . . . . . . 2 Unauthorized Hacks 23 | . 6 . . . 7 10 Terminals 13 | . 3 . . . 5 5 Assimilate 2 | . 2 . . . . . Botnet 9 | . . . . . 4 5 Operators 2 | . 1 . . . 1 . Fabricators 1 | . . . . . . 1 Haulers 1 | . . . . . . 1 Repair Stations . | . . . . . . . Recycling Units 7 | . 3 . . . 2 2 Monitor 3 | . 1 . . . 1 1 Recyclers 3 | . 1 . . . 1 1 Tunnel 1 | . 1 . . . . . Scanalyzers . | . . . . . . . Garrison Access 2 | . . . . . . 2 Watchers 2 | . . . . . . 2 Data Cores Recovered 1 | . 1 . . . . . Used . | . . . . . . . Hacking Detections 27 | . 7 1 . . 9 10 Full Trace Events 2 | . 1 1 . . . . Feedback Events 1 | . . 1 . . . . Corruption 1 | . . 1 . . . . Feedback Blocked . | . . . . . . . Robot Schematics Acquired . | . . . . . . . Robots Built . | . . . . . . . Authchips . | . . . . . . . Time . | . . . . . . . Total Robot Build Rating . | . . . . . . . Part Schematics Acquired . | . . . . . . . Parts Built . | . . . . . . . Authchips . | . . . . . . . Time . | . . . . . . . Total Part Build Rating . | . . . . . . . Parts Repaired 1 | . . . . . 1 . Time 108 | . . . . . 108 . Parts Recycled . | . . . . . . . Recycled Matter 553 | . . . . . 346 207 Retrieved Matter 613 | . . . . . 346 267 Retrieved Components . | . . . . . . . Parts Scanalyzed . | . . . . . . . Part Schematics Acquired . | . . . . . . . Parts Damaged . | . . . . . . . Bothacking | -11 -10 -10 -10 -9 -8 -7 ------------ Run | Yrd Mat Min Exi Min Mat Fac Used RIF Installer . | . . . . . . . Robots Hacked . | . . . . . . . Non-combat . | . . . . . . . Combat . | . . . . . . . Robot Hacks Applied . | . . . . . . . Relay Couplers Released . | . . . . . . . Fabnet Peak Effective % . | . . . . . . . Robots Rewired . | . . . . . . . Allies Hacked 2 | . . . . . . 2 Hacks Repelled . | . . . . . . . Allies | -11 -10 -10 -10 -9 -8 -7 -------- Run | Yrd Mat Min Exi Min Mat Fac Total Allies 12 | . 1 4 . 1 . 6 Largest Group 5 | . 1 5 4 5 4 5 Highest-Rated Group 152 | . 10 81 50 81 50 152 Highest-Rated Ally 31 | . 10 31 16 31 16 31 Total Orders . | . . . . . . . Ally Attacks 140 | . . 4 . 15 37 84 Total Damage 1814 | . . 20 . 158 428 1208 Kills 18 | . . 1 . 3 3 11 Allies Corrupted . | . . . . . . . Allies Melted . | . . . . . . . Intel | -11 -10 -10 -10 -9 -8 -7 ------- Run | Yrd Mat Min Exi Min Mat Fac Robot Analysis Total 1 | . 1 . . . . . Derelict Logs Recovered 1 | . . 1 . . . . Drone Launches . | . . . . . . . Drone Recoveries . | . . . . . . . Exploration | -11 -10 -10 -10 -9 -8 -7 ------------- Run | Yrd Mat Min Exi Min Mat Fac Turns Passed 7128 | 57 805 487 604 277 1840 3058 Spaces Moved 4016 | 43 640 374 439 142 882 1496 Core 49 | 8 . . . . . 41 Treads . | . . . . . . . Legs . | . . . . . . . Wheels 3922 | 35 640 374 439 142 882 1410 Hover . | . . . . . . . Flight 45 | . . . . . . 45 Fastest Speed 35 | 50 100 100 100 190 160 35 Average Speed 150 | 90 100 106 133 190 182 167 Slowest Speed 260 | 100 115 115 190 190 205 260 Overloaded Moves . | . . . . . . . Propulsion Burnouts . | . . . . . . . Robots Hopped . | . . . . . . . Cave-ins Triggered . | . . . . . . . Exploration Rate (%) 60 | 4 89 83 79 50 69 46 Regions Visited 6 Branch Regions 3 Pre-discovered Areas 2 | . 1 . 1 . . . Known Exits Taken 1 | . 1 . . . . . Unknown Exits Taken 5 | 1 . 1 1 1 1 . Scrap Searched 3 | . . 1 . 2 . . Spaces Dug 3 | . . . . . . 3 Terrain Destroyed 385 | . 96 80 . . 102 107 Melee . | . . . . . . . Projectile 6 | . . . . . . 6 AOE 379 | . 96 80 . . 102 101 Terrain Rammed . | . . . . . . . Walls Destroyed . | . . . . . . . Machines Disabled . | . . . . . . . Actions | -11 -10 -10 -10 -9 -8 -7 --------- Run | Yrd Mat Min Exi Min Mat Fac Total 4709 | 58 738 445 462 144 1028 1834 Wait 159 | 7 20 23 . . 49 60 Move 4010 | 42 639 373 438 141 881 1496 Hop . | . . . . . . . Pick Up 96 | 1 12 11 18 . 22 32 Fast Attach 40 | 6 6 . 1 . 1 26 Attach 30 | . 3 3 . . 4 20 Detach 8 | . 1 . . . . 7 Swap 36 | 1 1 10 . . 10 14 Drop 74 | 1 6 10 5 . 8 44 Fire 191 | . 50 15 . 3 53 70 Melee 61 | . . . . . . 61 Ram . | . . . . . . . Kick . | . . . . . . . Crush . | . . . . . . . Escape Stasis . | . . . . . . . Rewire . | . . . . . . . Trap 4 | . . . . . . 4 Miscellaneous . | . . . . . . . Route ------- -11/Scrapyard -10/Materials (discovered 5 exits: *Mat x3 / *Min x2) -10/Mines (discovered 3 exits: *Mat x2 / *Exi) -10/Exiles -9/Mines (discovered 2 exits: *Mat x2) -8/Materials (discovered 2 exits: *Fac x2) -7/Factory (discovered 1 exit: [*Fac]) History --------- Turn | Location | Event 19 | -11/Scrapyard | Discovered new exit (range 15) 58 | -11/Scrapyard | Entered Materials 253 | -10/Materials | Discovered new exit (range 3) 306 | -10/Materials | Build established: Mutant 311 | -10/Materials | Discovered new exit (range 5) 319 | -10/Materials | Identified exit to Materials 407 | -10/Materials | Discovered new exit (range 9) 457 | -10/Materials | Identified exit to Mines 656 | -10/Materials | Discovered exit to Materials (range 16) 823 | -10/Materials | Discovered exit to Mines (range 15) 863 | -10/Materials | Entered Mines 863 | -10/Mines | Accompanied by 1 ally 870 | -10/Mines | Received a Rocket Launcher from a helpful Derelict 983 | -10/Mines | Discovered exit to Materials (range 12) 985 | -10/Mines | Escorted by a lone wolf Derelict 1009 | -10/Mines | Discovered exit to Materials (range 6) 1028 | -10/Mines | Assisted by bots powering up and referring to "LRC-V3" 1036 | -10/Mines | Found a damaged Exp. Sensor Array with a note attached 1038 | -10/Mines | Found Prototype Device 1045 | -10/Mines | Identified Exp. Sensor Array 1078 | -10/Mines | Found a hidden stash of uninstalled traps 1134 | -10/Mines | Core integrity fell below 50% 1248 | -10/Mines | Joined a pair of Derelicts in attacking an 0b10 outpost 1338 | -10/Mines | Deemed a non-threat by the Exiles lab entrance 1339 | -10/Mines | Discovered new exit (range 5) 1350 | -10/Mines | Entered Exiles 1350 | -10/Exiles | Accompanied by 5 allies 1379 | -10/Exiles | Met 8R-AWN 1399 | -10/Exiles | Met EX-HEX 1445 | -10/Exiles | Met EX-DEC 1449 | -10/Exiles | Learned location of Zion (-6) 1550 | -10/Exiles | Build established: Scavenger-Mutant 1561 | -10/Exiles | Visited The Gauntlet 1939 | -10/Exiles | Discovered new exit (range 10) 1954 | -10/Exiles | Entered Mines 1954 | -9/Mines | Accompanied by 4 allies 1957 | -9/Mines | Received a Mining Laser from a helpful Derelict 1984 | -9/Mines | Met a Derelict bent on vengeance 2019 | -9/Mines | Build established: Hauler-Mutant 2209 | -9/Mines | Discovered new exit (range 5) 2209 | -9/Mines | Discovered new exit (range 13) 2231 | -9/Mines | Entered Materials 2231 | -8/Materials | Accompanied by 4 allies 2231 | -8/Materials | Evolved 4 slots: Propulsion x2, Utility x2 2889 | -8/Materials | Repaired Exp. Sensor Array 2988 | -8/Materials | Discovered new exit (range 16) 3713 | -8/Materials | Discovered new exit (range 12) 4071 | -8/Materials | Entered Factory 4071 | -7/Factory | Accompanied by 1 ally 4071 | -7/Factory | Evolved 2 slots: Power x1, Weapon x1 4393 | -7/Factory | Allied Derelicts emerged from ambush trap array 4798 | -7/Factory | Allied Derelicts emerged from ambush trap array 4977 | -7/Factory | P-60 Hacker assimilated allied P5-1AI(g) 5203 | -7/Factory | Discovered new exit (range 10) 6871 | -7/Factory | First assault squad dispatched 6890 | -7/Factory | Lost 3 parts (1n1u1w) 6995 | -7/Factory | Garrison activated, responded to threat 7032 | -7/Factory | Core integrity fell below 50% 7112 | -7/Factory | Core integrity fell below 20% 7129 | -7/Factory | Destroyed by G-47 Trooper with Particle Gun Last Messages --------------- 07095_ Acquired 1 matter. 07095_ Acquired 3 matter. 07099_ Imp. Light Armor Plating destroyed. 07100_ P-60 Hacker destroyed. 07101_ Acquired 4 matter. 07101_ Acquired 36 matter. 07101_ Cesium-ion Thruster destroyed. 07104_ S-27 Virus destroyed. 07107_ Assault Cannon destroyed. 07108_ Acquired 5 matter. 07109_ M-13 Machinist repairs G-50 Soldier. 07109_ Assault Cannon destroyed. 07111_ M-13 Machinist repairs Lgt. Angular Momentum Engine. 07111_ Assault Cannon destroyed. 07111_ Lrn. Tractor Beam destroyed. 07113_ Acquired Assault Cannon. 07113_ M-13 Machinist repairs Carbon-fiber Leg. 07114_ Acquired Assault Cannon. 07126_ Destroyed Imp. Heat Sink. Map ----- +----------------------------------------------------+ | ?????????????????# """ #???# #????????????????? | | ?????????????????# #???# #????????????????? | | ??????????????########+######## ##???????????????? | | ??????????????# """T""" #???????????????? | | ############### #???????????????? | | """ """ #???????????????? | | """ """ #???????????????? | | ""G"" """ ! """ """ #???????????????? | | " " """ #???????????????? | | """ """ """ #???????????????? | | """ """ #???????????????? | | a """ """ #???????????????? | | ###+########## ###?????????????? | | ] # ???????#]! """ """ #?????????????? | | ## ?????#! !""" """ #?????????????? | | ##! """"#???#=[=""" """ #?????????????? | | ## ! """"#???# #?????????????? | | ## """"#???# #?????????????? | | ## """"#???# m #?????????????? | | ## ""??????###u#### #?????????????? | | ## ""?????##;#/;##%## ###?????????????? | | * ## ?????#! ug Y #r ##??????????????? | | *= #######??????# %+ T#??????????????? | | %[ #????????????# =%; #??????????????? | | == #????????????# * =;g ##??????????????? | | =! #????????????# @ # #???????????????? | | = #????????????# # #???????????????? | | #????????????# # #???????????????? | | +????????????# # #???????????????? | | #????????????########### #???????????????? | | #??????????????????????# #???????????????? | | #??????????????????????? #???????????????? | | #######??????????????]???????? #???????????????? | | ?????????????????????????????? #???????????????? | | ?????????????????????????????? #???????????????? | | ?????????????????????????????? #???????????????? | | ?????????????????????????????? ????????????????? | | ?????????????????????????????????????????????????? | | ?????????????????????????????????????????????????? | | ?????????????????????????????????????????????????? | | ?????????????????????????????????????????????????? | | ?????????????????????????????????????????????????? | | ?????????????????????????????????????????????????? | | ?????????????????????????????????????????????????? | | ?????????????????????????????????????????????????? | | ?????????????????????????????????????????????????? | | ?????????????????????????????????????????????????? | | ?????????????????????????????????????????????????? | | ?????????????????????????????????????????????????? | | ?????????????????????????????????????????????????? | +----------------------------------------------------+ Best States ------------- Heat Dissipation 48 Energy Generation 27 Energy Capacity 515 Matter Stores 300 Matter Capacity 300 Sight Range 16 Terrain Scan Density 10 ECM Strength 1 Armor Coverage 600 Evasion (%) 63 Launcher Accuracy 20 Item Schematics ----------------- None Robot Schematics ------------------ None Fabricated ------------ Nothing Alien Tech Used ----------------- None Achievements -------------- None Challenges ------------ None Game ------ Seed MakeshiftStructuralSabre Manual? 0 Play Time 00:55:21 Cumulative 124.5 hours Start 2024.04.25 @ 12:35:05 End 2024.04.25 @ 13:34:17 Sessions 1 Manual Loads 0 Difficulty Rogue Special Mode None Game No. 130 Rogue 125 Adventurer 5 Explorer 0 Win Type - Total 3 Types 2/0/0/1/0/0/0/0/0 Lore% 51 Gallery% 66 Achievement% 49 Wizard Run 0 Options --------- Layout 1 ASCII 0 Keyboard 0 Movement Mouse Keybinds 0 Fullscreen 1 Font 24/Terminus Map View 50x35 Zoom Use 0% Tactical HUD 1 Map Filters NONE Filters NONE Steam 1 RUN: 548dda9b-5c17-4e4b-ab6e-e08a5568836a